bitfinex/quotes_SOLUSD_20250601
["timestamp","ask_amount","ask_price","bid_price","bid_amount"]
[1748752775705,6.42346792,155.68,155.59,48.49486561]
[1748752775909,14.53045276,155.66,155.59,48.49486561]
[1748752780991,14.53045276,155.65,155.59,48.49486561]
[1748752786586,14.53045276,155.65,155.59,58.67486561]
[1748752798507,14.53045276,155.66,155.59,58.67486561]
[1748752798712,9.29668318,155.66,155.59,58.67486561]
[1748752799334,9.29668318,155.65,155.59,58.67486561]
[1748752805810,9.29668318,155.66,155.59,58.67486561]
[1748752806344,6.42358374,155.68,155.59,58.67486561]
[1748752806631,9.29668318,155.66,155.59,58.67486561]
[1748752807039,9.29668318,155.67,155.59,58.67486561]
[1748752807524,9.29668318,155.67,155.61,22.49212774]
[1748752809908,9.29668318,155.67,155.61,61.87212774]
[1748752810521,181.10303724,155.75,155.64,26.0]
[1748752810522,18.36164445,155.73,155.64,26.0]
[1748752810924,9.29668318,155.7,155.64,26.0]
[1748752811128,9.29668318,155.69,155.64,26.0]
[1748752811639,9.29668318,155.67,155.64,26.0]
[1748752812511,9.29668318,155.67,155.64,32.42474874]
[1748752814734,9.29668318,155.67,155.64,26.0]
[1748752815841,9.29668318,155.68,155.64,26.0]
[1748752816430,6.42312841,155.69,155.64,32.42469738]
[1748752816431,9.29668318,155.69,155.64,32.42469738]
[1748752816605,9.29668318,155.68,155.64,26.0]
[1748752816809,9.29668318,155.68,155.61,6.42632221]
[1748752816810,9.29668318,155.66,155.61,6.42632221]
[1748752817035,9.29668318,155.66,155.62,26.0]
[1748752817241,9.29668318,155.65,155.62,26.0]
[1748752817736,10.26,155.7,155.64,26.0]
[1748752817931,9.29668318,155.68,155.64,26.0]
[1748752818114,9.29668318,155.67,155.64,26.0]
[1748752821913,9.29668318,155.67,155.64,32.42497772]
[1748752824238,9.29668318,155.67,155.64,26.0]
[1748752824639,6.42370309,155.68,155.64,26.0]
[1748752824939,9.29668318,155.67,155.64,26.0]
[1748752826534,9.29668318,155.67,155.64,32.42499903]
[1748752826919,9.29668318,155.68,155.64,32.42499903]
[1748752828842,9.29668318,155.66,155.63,26.0]
[1748752830138,9.29668318,155.67,155.63,26.0]
[1748752830335,9.29668318,155.66,155.63,26.0]
[1748752830538,9.29668318,155.67,155.63,32.4254434]
[1748752832345,6.4230201,155.69,155.63,32.4254434]
[1748752832553,9.29668318,155.67,155.63,32.4254434]
[1748752834338,10.2,155.71,155.63,32.4254434]
[1748752834527,9.29668318,155.69,155.63,32.4254434]
[1748752834847,10.2,155.71,155.64,18.64964886]
[1748752835027,9.29668318,155.71,155.64,18.64964886]
[1748752836027,9.29668318,155.71,155.65,6.42467073]
[1748752838046,9.29668318,155.7,155.65,6.42467073]
[1748752838434,15.71929257,155.7,155.65,6.42467073]
[1748752838637,15.71929257,155.7,155.64,25.07461262]
[1748752839064,6.42260939,155.7,155.64,25.07461262]
[1748752839230,15.71929257,155.7,155.64,25.07461262]
[1748752840141,9.29668318,155.71,155.64,25.07461262]
[1748752840447,9.29668318,155.7,155.64,25.07461262]
[1748752840826,6.420958,155.74,155.67,26.0]
[1748752841033,9.29668318,155.73,155.67,26.0]
[1748752841650,9.29668318,155.72,155.67,26.0]
[1748752842133,15.71852421,155.72,155.69,26.0]
[1748752842551,53.23803878,155.76,155.69,26.0]
[1748752842552,9.29668318,155.76,155.69,26.0]
[1748752843531,9.29668318,155.75,155.69,26.0]
[1748752844275,9.29668318,155.73,155.69,26.0]
[1748752845136,15.71845201,155.73,155.69,26.0]
[1748752845343,6.42176883,155.73,155.69,26.0]
[1748752845550,9.29668318,155.7,155.68,26.0]
[1748752845758,22.47519463,155.73,155.68,26.0]
[1748752846054,9.29668318,155.7,155.68,26.0]
[1748752846251,9.29668318,155.7,155.65,6.42465693]
[1748752846459,9.29668318,155.7,155.68,26.0]
[1748752846628,14.51963987,155.7,155.68,26.0]
[1748752847148,20.9424323,155.7,155.68,26.0]
[1748752847746,14.51963987,155.7,155.68,26.0]
[1748752849773,6.420958,155.74,155.68,26.0]
[1748752850138,14.51963987,155.71,155.68,26.0]
[1748752850647,14.51963987,155.72,155.68,32.42334647]
[1748752851737,6.41930928,155.78,155.68,32.42334647]
[1748752851936,0.28432314,155.77,155.68,32.42334647]
[1748752852153,14.51963987,155.73,155.68,32.42334647]
[1748752852866,6.42023462,155.76,155.68,32.42334647]
[1748752853052,14.51963987,155.75,155.68,71.82334647]
[1748752854340,14.51963987,155.75,155.68,87.88192817]
[1748752855443,14.51963987,155.74,155.68,87.88192817]
[1748752856261,14.51963987,155.71,155.68,32.42334647]
[1748752857263,14.51963987,155.72,155.68,32.42334647]
[1748752858052,14.51963987,155.7,155.68,26.0]
[1748752858354,8.06425617,155.74,155.68,26.0]
[1748752858543,14.51963987,155.71,155.68,26.0]
[1748752859271,14.51963987,155.71,155.69,26.0]
[1748752860437,14.51963987,155.71,155.67,26.0]
[1748752860642,14.51963987,155.7,155.68,26.0]
[1748752860866,14.51963987,155.69,155.64,10.2]
[1748752861079,14.51963987,155.68,155.65,32.42456171]
[1748752861363,14.51963987,155.69,155.65,32.42456171]
[1748752863073,14.51963987,155.7,155.65,32.42456171]
[1748752867161,20.94224869,155.7,155.65,32.42456171]
[1748752867665,14.51963987,155.7,155.65,32.42456171]
[1748752868255,20.94225095,155.7,155.65,26.0]
[1748752868583,14.51963987,155.69,155.65,26.0]
[1748752868879,14.51963987,155.67,155.6,89.6]
[1748752869066,14.51963987,155.66,155.6,10.24]
[1748752869253,14.51963987,155.66,155.63,26.0]
[1748752869454,6.42178268,155.72,155.64,26.0]
[1748752869659,6.42178268,155.72,155.63,26.0]
[1748752869956,14.51963987,155.7,155.63,26.0]
[1748752871585,14.51963987,155.7,155.64,6.42508352]
[1748752874759,14.51963987,155.69,155.64,6.42508352]
[1748752876282,14.51963987,155.7,155.64,22.48779233]
[1748752876577,7.92460566,155.73,155.65,44.64964886]
[1748752876578,14.51963987,155.72,155.65,44.64964886]
[1748752877088,1.5031,155.73,155.65,44.64964886]
[1748752877264,14.51963987,155.72,155.65,44.64964886]
[1748752877582,14.51963987,155.72,155.66,6.42425799]
[1748752878293,14.51963987,155.72,155.66,22.48490298]
[1748752878864,16.66069182,155.75,155.66,22.48490298]
[1748752879063,14.51963987,155.72,155.66,22.48490298]
[1748752881664,14.51963987,155.68,155.66,26.0]
[1748752882073,14.51963987,155.71,155.66,6.42409857]
[1748752882259,14.51963987,155.71,155.66,32.42409857]
[1748752888996,14.51963987,155.72,155.66,32.42409857]
[1748752892007,1.5812,155.71,155.66,32.42409857]
[1748752893783,1.5812,155.71,155.66,48.48474356]
[1748752894698,1.5812,155.71,155.67,18.64964886]
[1748752896083,1.5812,155.71,155.68,6.42343268]
[1748752900716,1.5812,155.71,155.7,26.0]
[1748752900894,19.53084476,155.75,155.7,26.0]
[1748752901210,1.5827,155.75,155.7,26.0]
[1748752901397,4.60815475,155.79,155.71,26.0]
[1748752901580,9.29084476,155.77,155.72,6.42178268]
[1748752904711,14.50727639,155.77,155.72,6.42178268]
[1748752907087,14.50727639,155.76,155.72,6.42178268]
[1748752907410,14.50727639,155.77,155.72,6.42178268]
[1748752908502,14.50727639,155.79,155.75,26.0]
[1748752909708,14.50727639,155.78,155.75,32.42053011]
[1748752910215,14.50727639,155.77,155.75,26.0]
[1748752914616,14.50727639,155.76,155.72,6.42178268]
[1748752914808,14.50727639,155.75,155.72,32.42178268]
[1748752915113,14.50727639,155.75,155.72,6.42178268]
[1748752915291,14.50727639,155.75,155.71,6.42206246]
[1748752915496,14.50727639,155.75,155.73,26.0]
[1748752915893,1.5827,155.76,155.73,26.0]
[1748752915894,16.08997639,155.76,155.73,26.0]
[1748752919526,16.08997639,155.76,155.7,18.71688669]
[1748752919527,14.50727639,155.74,155.7,0.06723783]
[1748752919700,14.50727639,155.71,155.7,0.06723783]
[1748752922631,20.92947149,155.71,155.7,0.06723783]
[1748752923502,14.50727639,155.71,155.7,0.06723783]
[1748752924031,6.420958,155.74,155.7,0.06723783]
[1748752924203,14.50727639,155.71,155.7,0.06723783]
[1748752924411,14.50727639,155.72,155.7,0.06723783]
[1748752927117,20.92918624,155.72,155.7,0.06723783]
[1748752927435,14.50727639,155.71,155.7,0.06723783]
[1748752927814,6.42190985,155.72,155.7,0.06723783]
[1748752928019,14.50727639,155.71,155.7,0.06723783]
[1748752930237,20.92947149,155.71,155.7,0.06723783]
[1748752930437,22.56407149,155.71,155.7,0.06723783]
[1748752931542,1.6346,155.75,155.71,26.0]
[1748752932885,16.14187639,155.75,155.71,26.0]
[1748752933733,16.14187639,155.75,155.71,32.42215524]
[1748752937454,1.6346,155.75,155.71,32.42215524]
[1748752937658,16.14187639,155.75,155.71,32.42215524]
[1748752941567,1.6346,155.75,155.71,32.42215524]
[1748752941865,16.14187639,155.75,155.71,32.42215524]
[1748752947287,1.6346,155.75,155.71,32.42215524]
[1748752948160,14.50727639,155.76,155.71,32.42215524]
[1748752948356,14.50727639,155.77,155.71,32.42215524]
[1748752957195,14.50727639,155.76,155.71,32.42215524]
[1748752960104,14.50727639,155.74,155.71,32.42215524]
[1748752960698,14.50727639,155.75,155.71,32.42215524]
[1748752963197,6.42000488,155.77,155.71,32.42215524]
[1748752963498,14.50727639,155.75,155.71,32.42215524]
[1748752963685,14.50727639,155.76,155.71,32.42215524]
[1748752964696,9.28592402,155.76,155.71,32.42215524]
[1748752974093,6.70322037,155.79,155.71,32.42215524]
[1748752974293,9.28592402,155.77,155.71,32.42215524]
[1748752983219,9.28592402,155.74,155.71,26.0]
[1748752983726,9.28592402,155.75,155.71,26.0]
[1748752985234,9.28592402,155.74,155.71,26.0]
[1748752986334,9.28592402,155.73,155.69,42.54292004]
[1748752986642,9.28592402,155.7,155.67,89.6]
[1748752986794,9.28592402,155.69,155.68,26.0]
[1748752986998,49.16,155.75,155.66,6.4241207]
[1748752987198,9.28592402,155.72,155.66,6.4241207]
[1748752987506,9.28592402,155.72,155.67,26.0]
[1748752988004,9.28592402,155.72,155.68,32.42343268]
[1748752988327,9.28592402,155.71,155.68,32.42343268]
[1748752994433,9.28592402,155.72,155.68,32.42343268]
[1748752995940,9.28592402,155.71,155.68,32.42343268]
[1748752996812,9.28592402,155.71,155.68,26.0]
[1748752997508,15.70814247,155.71,155.68,26.0]
[1748752997819,9.28592402,155.7,155.68,26.0]
[1748752998812,9.28592402,155.7,155.66,26.0]
[1748753001837,15.70866492,155.7,155.66,26.0]
[1748753007854,9.28592402,155.7,155.66,26.0]
[1748753008151,15.70857598,155.7,155.66,26.0]
[1748753010552,9.28592402,155.7,155.66,26.0]
[1748753011454,15.70827622,155.71,155.67,26.0]
[1748753013437,9.28592402,155.71,155.67,26.0]
[1748753015065,15.70839582,155.71,155.67,26.0]
[1748753016571,9.28592402,155.7,155.67,26.0]
[1748753016865,9.28592402,155.69,155.65,26.0]
[1748753018040,9.28592402,155.7,155.65,32.424535]
[1748753019167,15.70839582,155.71,155.65,32.424535]
[1748753020370,9.28592402,155.7,155.65,32.424535]
[1748753022582,15.70859194,155.7,155.65,32.424535]
[1748753023463,15.70859194,155.7,155.65,26.0]
[1748753025585,9.28592402,155.7,155.65,26.0]
[1748753025777,6.42178268,155.72,155.65,32.42463567]
[1748753026375,17.2693516,155.73,155.65,32.42463567]
[1748753026578,7.98342758,155.73,155.66,18.64964886]
[1748753027960,1.5619,155.73,155.67,6.42384531]
[1748753028566,7.98327368,155.73,155.67,6.42384531]
[1748753028773,17.2691977,155.73,155.67,6.42384531]
[1748753029986,16.2691977,155.73,155.67,6.42384531]
[1748753030297,9.28592402,155.72,155.67,6.42384531]
[1748753037115,15.70784556,155.72,155.67,6.42384531]
[1748753037319,9.28592402,155.71,155.66,25.07382206]
[1748753037507,9.28592402,155.71,155.66,6.4241732]
[1748753038424,15.70831748,155.71,155.66,6.4241732]
[1748753039518,9.28592402,155.8,155.7,44.64964886]
[1748753039717,9.28592402,155.79,155.7,44.64964886]
[1748753039916,9.28592402,155.78,155.7,44.64964886]
[1748753040130,9.28592402,155.78,155.68,27.5022]
[1748753040131,9.28592402,155.75,155.68,27.5022]
[1748753040451,9.28592402,155.74,155.68,27.5022]
[1748753041235,9.28592402,155.74,155.69,6.4230201]
[1748753042031,9.28592402,155.73,155.69,6.4230201]
[1748753042632,14.51520002,155.73,155.69,6.4230201]
[1748753044540,14.51520002,155.72,155.68,32.42333146]
[1748753045741,14.51520002,155.72,155.66,6.42415292]
[1748753045742,14.51520002,155.7,155.66,6.42415292]
[1748753047242,14.51520002,155.71,155.66,6.42415292]
[1748753050347,14.51520002,155.72,155.66,6.42415292]
[1748753053157,20.93709626,155.72,155.66,6.42415292]
[1748753053333,14.51520002,155.71,155.66,6.42415292]
[1748753054753,20.93743646,155.71,155.66,6.42415292]
[1748753055141,14.51520002,155.71,155.66,6.42415292]
[1748753061555,20.9374261,155.71,155.66,6.42415292]
[1748753061964,20.76797594,155.71,155.66,6.42415292]
[1748753062551,14.34574986,155.71,155.66,6.42415292]
[1748753062748,9.29198041,155.71,155.66,6.42415292]
[1748753064473,15.71435323,155.71,155.65,32.424579]
[1748753064861,15.71435323,155.71,155.65,26.0]
[1748753064862,9.29198041,155.69,155.65,26.0]
[1748753065056,9.29198041,155.7,155.65,32.42465281]
[1748753068959,6.42178268,155.72,155.65,32.42465281]
[1748753069271,9.29198041,155.71,155.65,32.42465281]
[1748753070157,10.08,155.73,155.66,18.64964886]
[1748753070767,150.5449,155.78,155.66,57.74964886]
[1748753071073,9.29198041,155.76,155.69,32.4230201]
[1748753071245,15.71199971,155.77,155.69,32.4230201]
[1748753071446,15.71199971,155.77,155.69,48.48057036]
[1748753071447,9.29198041,155.77,155.69,48.48057036]
[1748753071879,15.71177408,155.77,155.69,48.48057036]
[1748753073555,9.29198041,155.76,155.69,48.48057036]
[1748753074443,9.29198041,155.75,155.69,48.48057036]
[1748753074671,14.51130876,155.75,155.69,48.48057036]
[1748753077559,14.51130876,155.76,155.69,48.48057036]
[1748753077961,18.0533,155.78,155.7,18.64964886]
[1748753078266,14.51130876,155.77,155.7,18.64964886]
[1748753079582,11.6249,155.78,155.71,6.4221951]
[1748753079787,14.51130876,155.77,155.71,6.4221951]
[1748753083569,11.6249,155.78,155.71,6.4221951]
[1748753083770,14.51130876,155.77,155.71,6.4221951]
[1748753090161,14.51130876,155.76,155.71,6.4221951]
[1748753090563,14.51130876,155.77,155.71,6.4221951]
[1748753094689,16.4993757,155.78,155.71,6.4221951]
[1748753094690,9.28589126,155.76,155.71,6.4221951]
[1748753099894,9.28589126,155.77,155.71,6.4221951]
[1748753101294,15.70577712,155.77,155.71,6.4221951]
[1748753102373,9.28589126,155.77,155.71,6.4221951]
[1748753102575,16.49945899,155.78,155.71,6.4221951]
[1748753102772,7.5786,155.79,155.72,18.64964886]
[1748753102773,1.5541,155.79,155.72,18.64964886]
[1748753102984,9.28589126,155.81,155.73,22.47479612]
[1748753103184,10.06,155.83,155.73,22.47479612]
[1748753103385,9.28589126,155.81,155.73,22.47479612]
[1748753104107,9.28589126,155.82,155.74,18.64964886]
[1748753104329,9.28589126,155.83,155.74,18.64964886]
[1748753104489,1.6129,155.84,155.74,18.64964886]
[1748753104694,9.28589126,155.83,155.74,18.64964886]
[1748753104993,15.70326746,155.83,155.75,6.42054574]
[1748753106395,6.4173762,155.83,155.75,6.42054574]
[1748753106715,15.70326746,155.83,155.75,6.42054574]
[1748753106909,17.31577032,155.84,155.76,18.64964886]
[1748753107237,10.89539126,155.88,155.79,26.0]
[1748753107403,9.28589126,155.87,155.77,10.06]
[1748753107609,9.28589126,155.85,155.8,26.0]
[1748753108018,9.28589126,155.84,155.8,26.0]
[1748753108319,9.28589126,155.86,155.8,26.0]
[1748753108820,6.1922,155.87,155.8,32.4183469]
[1748753109216,21.89370044,155.87,155.8,32.4183469]
[1748753109529,9.28589126,155.85,155.8,26.0]
[1748753109704,9.28589126,155.86,155.8,32.41843642]
[1748753110739,12.60780918,155.87,155.8,32.41843642]
[1748753110930,14.49099639,155.86,155.8,32.41843642]
[1748753111230,6.1922,155.87,155.81,18.64964886]
[1748753112412,6.1922,155.87,155.82,6.4176614]
[1748753115729,27.09902029,155.87,155.81,6.4179615]
[1748753116106,14.49099639,155.86,155.81,6.4179615]
[1748753116851,20.68319639,155.87,155.81,6.4179615]
[1748753117032,27.0989965,155.87,155.81,6.4179615]
[1748753118333,20.9067965,155.87,155.81,6.4179615]
[1748753123338,20.90618756,155.88,155.81,6.4179615]
[1748753124839,6.41519117,155.88,155.81,6.4179615]
[1748753125030,2.52913075,155.89,155.81,6.4179615]
[1748753125031,8.94406435,155.89,155.81,6.4179615]
[1748753125338,8.94406435,155.89,155.82,18.64964886]
[1748753125541,8.94406435,155.89,155.82,108.24964886]
[1748753125542,2.52913075,155.89,155.82,108.24964886]
[1748753125728,2.52913075,155.89,155.83,26.0]
[1748753126339,14.49099639,155.88,155.83,26.0]
[1748753126515,14.49099639,155.87,155.83,26.0]
[1748753126833,8.94401901,155.89,155.83,26.0]
[1748753127040,20.90649636,155.88,155.83,26.0]
[1748753127615,6.41549997,155.88,155.83,26.0]
[1748753127839,20.90649636,155.88,155.83,32.41707318]
[1748753128023,6.41549997,155.88,155.83,32.41707318]
[1748753128534,23.43505084,155.89,155.83,32.41707318]
[1748753129055,17.02012714,155.89,155.83,32.41707318]
[1748753129225,16.52012714,155.89,155.83,32.41707318]
[1748753130628,2.02913075,155.89,155.84,18.64964886]
[1748753131144,2.02913075,155.89,155.85,6.41642605]
[1748753131891,2.02913075,155.89,155.86,18.64964886]
[1748753132038,2.02913075,155.89,155.86,44.64964886]
[1748753133139,2.02913075,155.89,155.87,6.41560274]
[1748753134533,2.02913075,155.89,155.88,18.64964886]
[1748753135170,2.02913075,155.89,155.88,25.06484003]
[1748753136953,2.02913075,155.89,155.88,125.00916317]
[1748753138356,2.02913075,155.89,155.88,150.72484003]
[1748753141044,2.02913075,155.89,155.88,61.12484003]
[1748753141257,2.02913075,155.89,155.88,36.06]
[1748753141773,2.02913075,155.89,155.88,61.12484003]
[1748753142870,2.02913075,155.89,155.88,35.40916317]
[1748753145238,14.47256194,155.95,155.91,26.0]
[1748753145437,79.69841974,156.0,155.91,26.0]
[1748753145438,14.47256194,155.96,155.91,32.41387156]
[1748753146255,14.47256194,155.97,155.91,32.41387156]
[1748753146453,22.42910432,155.97,155.91,32.41387156]
[1748753147048,22.69713052,155.97,155.91,32.41387156]
[1748753148181,1.8130262,155.97,155.91,32.41387156]
[1748753148637,1.8130262,155.97,155.92,18.64964886]
[1748753150157,1.8130262,155.97,155.92,25.06296037]
[1748753151767,8.22454685,155.97,155.92,25.06296037]
[1748753151949,1.8130262,155.97,155.92,25.06296037]
[1748753153082,1.8130262,155.97,155.92,114.66296037]
[1748753154948,22.69720075,155.97,155.92,89.6]
[1748753155671,1.8130262,155.97,155.92,96.01346386]
[1748753156181,22.69710293,155.97,155.92,96.01346386]
[1748753157177,8.22454099,155.97,155.92,96.01346386]
[1748753157379,1.8130262,155.97,155.92,96.01346386]
[1748753157879,0.2680262,155.97,155.92,96.01346386]
[1748753158756,0.2680262,155.97,155.92,6.41346386]
[1748753162559,6.67955212,155.97,155.92,6.41346386]
[1748753162972,0.2680262,155.97,155.92,6.41346386]
[1748753163379,6.67961029,155.97,155.91,122.01381671]
[1748753163574,14.47256194,155.95,155.91,115.6]
[1748753163977,14.47256194,155.95,155.91,96.01394486]
[1748753164161,6.41216391,155.96,155.91,96.01394486]
[1748753164361,21.15219846,155.97,155.91,96.01394486]
[1748753164667,0.2680262,155.97,155.92,18.64964886]
[1748753165701,0.2680262,155.97,155.93,6.41313409]
[1748753165878,14.47256194,155.96,155.9,16.47425655]
[1748753166080,14.47256194,155.94,155.9,10.06]
[1748753166272,14.47256194,155.92,155.87,18.64964886]
[1748753166467,14.47256194,155.92,155.87,44.64964886]
[1748753166694,14.47256194,155.92,155.87,25.06513505]
[1748753166891,14.47256194,155.92,155.87,51.06513505]
[1748753167109,14.47256194,155.89,155.82,10.1]
[1748753167407,14.47256194,155.87,155.82,10.1]
[1748753167614,14.47256194,155.86,155.82,10.1]
[1748753167901,14.47256194,155.86,155.81,32.41794507]
[1748753168277,20.88868934,155.86,155.81,32.41794507]
[1748753168810,14.47256194,155.86,155.81,32.41794507]
[1748753168984,14.47256194,155.87,155.81,32.41794507]
[1748753170176,14.47256194,155.86,155.81,26.0]
[1748753170381,14.47256194,155.85,155.81,26.0]
[1748753171080,14.47256194,155.85,155.81,26.07246407]
[1748753171604,14.47256194,155.85,155.81,0.07246407]
[1748753171790,14.47256194,155.84,155.81,0.07246407]
[1748753171989,22.45488359,155.87,155.81,0.07246407]
[1748753172181,14.47256194,155.82,155.81,0.07246407]
[1748753173708,49.28,155.86,155.81,0.07246407]
[1748753174003,14.47256194,155.82,155.81,0.07246407]
[1748753174573,0.28432314,155.84,155.81,0.07246407]
[1748753174802,6.41642605,155.85,155.81,0.07246407]
[1748753174981,14.47256194,155.84,155.81,0.07246407]
[1748753175992,16.51611744,155.86,155.81,0.07246407]
[1748753175993,14.47256194,155.85,155.81,0.07246407]
[1748753176984,14.47256194,155.84,155.81,0.07246407]
[1748753180409,14.47256194,155.83,155.81,0.07246407]
[1748753180706,14.47256194,155.82,155.81,0.07246407]
[1748753182510,20.89022334,155.82,155.81,0.07246407]
[1748753185090,21.17454648,155.82,155.74,10.1]
[1748753185287,14.47256194,155.78,155.74,10.1]
[1748753186496,14.47256194,155.78,155.73,32.4212904]
[1748753186813,14.47256194,155.77,155.73,26.0]
[1748753187998,6.41903145,155.79,155.73,32.42119192]
[1748753188204,30.99070361,155.81,155.73,32.42119192]
[1748753188921,14.47256194,155.8,155.73,32.42119192]
[1748753189428,20.89106547,155.8,155.73,32.42119192]
[1748753190008,20.89106547,155.8,155.74,1.5891]
[1748753190598,20.89106547,155.8,155.75,6.42054574]
[1748753191326,14.47256194,155.8,155.75,6.42054574]
[1748753192605,20.89110272,155.8,155.75,6.42054574]
[1748753192997,14.47256194,155.8,155.75,6.42054574]
[1748753194005,20.89123879,155.8,155.75,6.42054574]
[1748753196725,20.89123879,155.8,155.74,1.5891]
[1748753196726,14.47256194,155.79,155.74,1.5891]
[1748753196943,14.47256194,155.78,155.74,1.5891]
[1748753197102,14.47256194,155.76,155.73,26.0]
[1748753197434,14.47256194,155.77,155.73,26.0]
[1748753198818,20.89237818,155.77,155.73,26.0]
[1748753199028,14.47256194,155.76,155.7,37.7608]
[1748753199209,14.47256194,155.76,155.7,44.18332868]
[1748753200337,14.47256194,155.76,155.7,42.52252868]
[1748753202135,20.8927835,155.76,155.7,42.52252868]
[1748753202441,20.8927835,155.76,155.7,44.18332868]
[1748753203349,14.47256194,155.74,155.69,6.42297015]
[1748753203525,6.42022156,155.76,155.68,6.6575]
[1748753203526,14.47256194,155.73,155.68,6.6575]
[1748753203944,6.42022156,155.76,155.68,6.6575]
[1748753204142,14.47256194,155.74,155.68,6.6575]
[1748753204348,14.47256194,155.74,155.68,13.08080726]
[1748753206764,14.47256194,155.74,155.68,29.13938896]
[1748753207051,14.47256194,155.76,155.69,18.64964886]
[1748753207250,14.47256194,155.75,155.69,18.64964886]
[1748753207463,14.47256194,155.75,155.7,6.42260757]
[1748753207656,14.47256194,155.74,155.7,6.42260757]
[1748753208233,14.47256194,155.74,155.69,6.42286145]
[1748753209131,14.47256194,155.72,155.68,96.02342193]
[1748753209331,14.47256194,155.72,155.68,6.42342193]
[1748753209862,14.47256194,155.73,155.68,6.42342193]
[1748753210835,6.42129105,155.74,155.68,6.42342193]
[1748753211160,14.47256194,155.73,155.68,6.42342193]
[1748753212730,20.89406187,155.73,155.68,6.42342193]
[1748753213733,14.47256194,155.73,155.68,6.42342193]
[1748753213935,14.47256194,155.74,155.68,6.42342193]
[1748753214160,14.47256194,155.73,155.68,6.42342193]
[1748753215156,20.89394763,155.73,155.68,6.42342193]
[1748753215537,14.47256194,155.72,155.68,6.42342193]
[1748753216132,14.47256194,155.72,155.67,27.72772924]
[1748753216570,14.47256194,155.72,155.67,34.15150339]
[1748753216876,14.47256194,155.72,155.67,32.49630339]
[1748753217037,20.89460998,155.72,155.67,32.49630339]
[1748753217235,14.47256194,155.68,155.67,0.07252924]
[1748753217632,14.47256194,155.69,155.67,0.07252924]
[1748753219132,14.47256194,155.71,155.67,0.07252924]
[1748753219438,14.47256194,155.72,155.67,0.07252924]
[1748753220033,14.47256194,155.71,155.67,0.07252924]
[1748753220333,14.47256194,155.72,155.67,0.07252924]
[1748753222767,6.42104093,155.74,155.67,0.07252924]
[1748753222942,14.47256194,155.73,155.67,0.07252924]
[1748753223261,14.47256194,155.71,155.67,0.07252924]
[1748753223961,6.56282765,155.75,155.67,0.07252924]
[1748753223962,14.47256194,155.74,155.67,0.07252924]
[1748753224942,14.47256194,155.73,155.67,0.07252924]
[1748753225142,14.47256194,155.73,155.67,6.49637455]
[1748753226660,6.42054574,155.75,155.67,6.49637455]
[1748753226865,10.14,155.76,155.67,48.55598783]
[1748753227073,14.47256194,155.75,155.67,48.55598783]
[1748753227941,14.47256194,155.74,155.67,48.55598783]
[1748753229483,14.47256194,155.73,155.67,32.49637455]
[1748753229656,14.47256194,155.7,155.67,26.07252924]
[1748753230352,14.47256194,155.69,155.67,0.07252924]
[1748753230962,42.33671815,155.74,155.67,0.07252924]
[1748753230963,14.47256194,155.68,155.67,0.07252924]
[1748753232173,20.89599462,155.68,155.67,0.07252924]
[1748753240085,0.28432314,155.69,155.67,0.07252924]
[1748753240287,14.47256194,155.68,155.67,0.07252924]
[1748753241365,20.89599462,155.68,155.67,0.07252924]
[1748753242881,6.42343268,155.68,155.67,0.07252924]
[1748753243082,21.18031776,155.68,155.67,0.07252924]
[1748753243297,21.18031776,155.68,155.58,26.18794599]
[1748753243298,0.28432314,155.67,155.59,32.42714827]
[1748753243511,14.47256194,155.63,155.59,32.42714827]
[1748753243817,14.47256194,155.65,155.59,32.42714827]
[1748753244898,14.47256194,155.64,155.59,32.42714827]
[1748753245690,14.47256194,155.63,155.58,16.54742801]
[1748753247027,14.47256194,155.62,155.58,10.12]
[1748753247167,14.47256194,155.62,155.57,32.42783563]
[1748753249897,14.47256194,155.64,155.57,32.42783563]
[1748753250192,14.47256194,155.65,155.58,18.64964886]
[1748753250900,24.59256194,155.66,155.58,18.64964886]
[1748753252190,14.47256194,155.65,155.59,6.42714827]
[1748753258708,14.47256194,155.65,155.59,22.49501895]
[1748753259001,14.47256194,155.66,155.59,22.49501895]
[1748753259630,14.9917102,155.74,155.62,26.0]
[1748753259791,14.47256194,155.71,155.63,18.64964886]
[1748753260713,14.47256194,155.7,155.63,18.64964886]
[1748753260919,14.47256194,155.7,155.64,6.42508352]
[1748753263601,14.47256194,155.68,155.63,6.42549636]
[1748753264007,14.47256194,155.69,155.63,6.42549636]
[1748753264806,14.47256194,155.7,155.63,6.42549636]
[1748753265697,20.8952139,155.7,155.63,6.42549636]
[1748753265896,32.42265196,155.7,155.61,89.6]
[1748753266227,14.47256194,155.63,155.58,6.42756138]
[1748753266431,14.47256194,155.63,155.58,32.42756138]
[1748753266734,10.1,155.68,155.62,26.0]
[1748753266924,20.89483164,155.71,155.63,26.0]